Cogmind - Beta 16 @@@ ROGUE MODE // 2025.12.03 @ 22:33:00 Player: Scringis Result: Destroyed by G-47 Trooper with Particle Gun Performance ------------- Evolutions (0) 0 Regions Visited (1) 200 Robots Destroyed (20) 100 Value Destroyed (406) 406 Prototype IDs (0) 0 Alien Tech Used (0) 0 Bonus (0) 0 TOTAL SCORE: 706 Bonus ------- None Cogmind --------- Core Integrity 0/250 Matter 233/300 Energy 100/100 System Corruption 0% Temperature Cool (10) Movement Core (400) Ox7 Location -10/Materials Parts ------- > --- POWER (1) -------- (None) > --- PROPULSION (2) --- (None) > --- UTILITY (2) ------ Large Storage Unit Signal Interpreter > --- WEAPON (2) ------- Hammer > --- INVENTORY (15) --- Light Ion Engine Compact Wheel Compact Wheel Large Storage Unit Light Assault Rifle Peak State ------------ > --- POWER ------------ Ion Engine > --- PROPULSION ------- Light Treads Light Treads > --- UTILITY ---------- Medium Storage Unit Light Armor Plating > --- WEAPON ----------- Assault Rifle Light Assault Rifle > --- INVENTORY -------- Light Ion Engine Compact Wheel Compact Wheel Light Assault Rifle Light Assault Rifle [Rating: 7] Favorites ----------- Power Ion Engine Engine Ion Engine Propulsion Light Treads Treads Light Treads Wheel Compact Wheel Utility Light Armor Plating Storage Medium Storage Unit Processor Signal Interpreter Protection Light Armor Plating Weapon Light Assault Rifle Ballistic Gun Light Assault Rifle Impact Weapon Hammer Build | -11 -10 ------- Run | Yrd Mat Slots Evolved . | . . Power . | . . Propulsion . | . . Utility . | . . Weapon . | . . Parts Attached 16 | 8 8 Power 2 | 1 1 Engine 2 | 1 1 Core . | . . Reactor . | . . Propulsion 4 | 4 . Treads 2 | 2 . Leg . | . . Wheel 2 | 2 . Hover . | . . Flight . | . . Utility 5 | 1 4 Device . | . . Storage 3 | 1 2 Processor 1 | . 1 Hackware . | . . Protection 1 | . 1 Artifact . | . . Weapon 5 | 2 3 Energy Gun . | . . Energy Cannon . | . . Ballistic Gun 4 | 2 2 Ballistic Cannon . | . . Launcher . | . . Special Weapon . | . . Impact Weapon 1 | . 1 Slashing Weapon . | . . Piercing Weapon . | . . Special Melee Weapon . | . . Unidentified Prototypes . | . . Parts Lost 8 | . 8 Power 2 | . 2 Propulsion 2 | . 2 Utility 1 | . 1 Weapon 3 | . 3 Highest Loss Streak 8 | . 8 To Critical Strikes . | . . Average Backups 5 | 2 6 Power 1 | 1 1 Propulsion 1 | 1 2 Utility . | . . Weapon 2 | . 2 Tool/Special . | . . Unused Backups 3 | . 3 Power 1 | . 1 Propulsion . | . . Utility 2 | . 2 Weapon . | . . Tool/Special . | . . Average Slot Usage (%) 94 | . 94 Engine 13 | . 13 Treads 27 | . 27 Storage 14 | . 14 Protection 8 | . 8 Ballistic Gun 26 | . 26 Impact Weapon 1 | . 1 Peak Build Rating 7 | 6 7 Average Rating 6 | 4 6 On Entrance 3 | . 6 Avg Prop Armor Cover (%) . | . . Naked Turns . | . . Heaviest Build 31 | 13 31 Greatest Support 40 | 40 40 Greatest Overweight (x) 4 | 4 1 Average Overweight (x) . | . . Largest Inventory Capacity 15 | 8 15 Average Capacity 11 | 7 12 Most Carried 9 | 5 9 Average Carried 6 | 3 6 Final Capacity 15 | 8 15 Final Carried 5 | 4 5 Class Distribution -------------------- 100% | Mutant Dominant Class ---------------- Mutant | -10/Materials Resources | -11 -10 ----------- Run | Yrd Mat Matter Collected 475 | 243 232 Remotely . | . . Salvage Created 540 | . 540 Parts 38 | . 38 Haulers Intercepted 1 | . 1 Recyclers Shooed 1 | . 1 Parts Field Recycled . | . . Retrieved Matter . | . . Parts Self-Destructed . | . . Prevented . | . . Parts Restored . | . . Kills | -11 -10 ------- Run | Yrd Mat Combat Hostiles Destroyed 14 | . 14 Guns 14 | . 14 Classes Destroyed 7 | . 7 Worker 2 | . 2 Builder 1 | . 1 Hauler 1 | . 1 Recycler 1 | . 1 Operator 1 | . 1 Swarmer 6 | . 6 Grunt 8 | . 8 Best Kill Streak 8 | . 8 Combat Bots Only 6 | . 6 Max Kills in Single Turn 4 | . 4 Gunslinging . | . . Exploded . | . . Melee . | . . Uniques/NPCs Destroyed . | . . Combat | -11 -10 -------- Run | Yrd Mat Hostile Shots Fired 102 | . 102 Missed 19 | . 19 Hits 83 | . 83 Projectile 83 | . 83 Critical Strikes 2 | . 2 Damage Taken 1066 | . 1066 Core 259 | . 259 Absorbed by Shields . | . . Core Remaining (%) 100 | 100 . Volleys Fired 61 | . 61 Largest 2 | . 2 Hottest 40 | . 40 Shots Fired 110 | . 110 Gun 110 | . 110 Cannon . | . . Launcher . | . . Special . | . . Kinetic 110 | . 110 Thermal . | . . Explosive . | . . Electromagnetic . | . . Robot Hit Streak 16 | . 16 Robot Miss Streak 4 | . 4 Penetration Max . | . . Secondary Targets 1 | . 1 Max Gunslinging Chain 1 | . 1 Shots Hit Robots 72 | . 72 Core Hits 33 | . 33 Critical Kills . | . . Critical Parts Destroyed 1 | . 1 Critical Strikes 1 | . 1 Destroy 1 | . 1 Melee Attacks 2 | . 2 Impact 2 | . 2 Slashing . | . . Piercing . | . . Sneak Attacks . | . . Combat Hostiles . | . . Follow-up Attacks . | . . Damage Inflicted 1197 | . 1197 Guns 730 | . 730 Cannons . | . . Explosions 442 | . 442 Melee . | . . Ramming 25 | . 25 Kinetic 730 | . 730 Thermal . | . . Explosive 442 | . 442 Electromagnetic . | . . Impact . | . . Slashing . | . . Piercing . | . . Highest Corruption . | . . Average Corruption . | . . Corruption Purged . | . . Corruption Blocked . | . . Overload Shots . | . . Overflow Damage 2 | . 2 Projectiles . | . . Explosions 2 | . 2 Melee . | . . Knockbacks . | . . Impact . | . . Kinetic . | . . Secondary . | . . Self-Inflicted Damage 44 | . 44 Shots 1 | . 1 Rammed 3 | . 3 Targets Rammed 3 | . 3 Kicked . | . . Crushed . | . . Highest Temperature 55 | . 55 Average Temperature 12 | . 12 Received Heat Transfer 543 | . 543 Siege Activations . | . . Martial Activations . | . . Shielding Activations . | . . Robots Disrupted . | . . Combat Hostiles . | . . Robots Corrupted . | . . Combat Hostiles . | . . Parts Fried . | . . Impact Corruptions . | . . Robots Melted . | . . Combat Hostiles . | . . Parts Melted . | . . Heat Transferred . | . . Parts Sabotaged . | . . Parts Stolen . | . . Parts Stripped . | . . Power Chain Reactions . | . . Alert | -11 -10 ------- Run | Yrd Mat Maximum Alert Level . | . . Low Security (%) 100 | 100 100 Level 1 . | . . Level 2 . | . . Level 3 . | . . Level 4 . | . . Level 5 . | . . High Security . | . . Max Security . | . . Peak Influence 191 | . 191 Initial . | . . Average 51 | . 57 Influence Increases 470 | . 470 Destroy 0b10 Robot/C 280 | . 280 Destroy 0b10 Robot/NC 30 | . 30 Destroy Leader 52 | . 52 Successful Hack 23 | . 23 Disable Machine 45 | . 45 Destroy Structure 40 | . 40 Influence Decreases 371 | . 371 Time Decay 291 | . 291 Lost Part 80 | . 80 Squads Dispatched 3 | . 3 Investigation 1 | . 1 Extermination . | . . Reinforcement 2 | . 2 Assault . | . . Garrison . | . . Intercept . | . . Searches Triggered . | . . Construction Impeded . | . . Haulers Reinforced . | . . Active Scanning Responses . | . . Cargo Convoy Interrupts . | . . Stealth | -11 -10 --------- Run | Yrd Mat Distress Signals 2 | . 2 Communications Jammed . | . . Distress Signals . | . . Times Spotted 24 | . 24 Peak Tracking Total 6 | . 6 Tactical Retreats . | . . Traps | -11 -10 ------- Run | Yrd Mat Traps Triggered . | . . Indirectly . | . . Trap Hack Attempts . | . . Triggered . | . . Disarmed . | . . Reprogrammed . | . . Reused . | . . Traps Extracted . | . . Installed . | . . Triggered . | . . Machines | -11 -10 ---------- Run | Yrd Mat Machines Disabled 3 | . 3 Max in Single Turn 2 | . 2 Machines Repaired . | . . Machines Dismantled . | . . Machines Sabotaged . | . . Overloaded Fab Kills . | . . Hacking | -11 -10 --------- Run | Yrd Mat Machines Accessed 3 | . 3 Terminals 3 | . 3 Fabricators . | . . Repair Stations . | . . Recycling Units . | . . Scanalyzers . | . . Garrison Access . | . . Total Hacks 9 | . 9 Successful 4 | . 4 Failed 5 | . 5 Catastrophic 1 | . 1 Database Lockouts . | . . Manual 9 | . 9 Terminals 9 | . 9 Fabricators . | . . Repair Stations . | . . Recycling Units . | . . Scanalyzers . | . . Garrison Access . | . . Terminal Hacks . | . . Fabricator Hacks . | . . Repair Station Hacks . | . . Recycling Unit Hacks . | . . Scanalyzer . | . . Garrison Access Hacks . | . . Unauthorized Hacks 4 | . 4 Terminals 4 | . 4 Assimilate 1 | . 1 Botnet 2 | . 2 Operators 1 | . 1 Fabricators . | . . Repair Stations . | . . Recycling Units . | . . Scanalyzers . | . . Garrison Access . | . . Data Cores Recovered . | . . Used . | . . Hacking Detections 3 | . 3 Full Trace Events 1 | . 1 Feedback Events . | . . Feedback Blocked . | . . Robot Schematics Acquired . | . . Robots Built . | . . Authchips . | . . Time . | . . Total Robot Build Rating . | . . Part Schematics Acquired . | . . Parts Built . | . . Authchips . | . . Time . | . . Total Part Build Rating . | . . Part Studies Acquired . | . . Parts Repaired . | . . Time . | . . Parts Recycled . | . . Recycled Matter . | . . Retrieved Matter . | . . Retrieved Components . | . . Parts Scanalyzed . | . . Part Schematics Acquired . | . . Parts Damaged . | . . Bothacking | -11 -10 ------------ Run | Yrd Mat Used RIF Installer . | . . Robots Hacked . | . . Non-combat . | . . Combat . | . . Robot Hacks Applied . | . . Relay Couplers Released . | . . Fabnet Peak Effective % . | . . Robots Rewired . | . . Allies Hacked . | . . Hacks Repelled . | . . Allies | -11 -10 -------- Run | Yrd Mat Total Allies . | . . Largest Group . | . . Highest-Rated Group . | . . Highest-Rated Ally . | . . Total Orders . | . . Ally Attacks . | . . Total Damage . | . . Kills . | . . Allies Corrupted . | . . Allies Melted . | . . Intel | -11 -10 ------- Run | Yrd Mat Active Infowar (turns) . | . . Robot Analysis Total . | . . Derelict Logs Recovered . | . . Drone Launches . | . . Drone Recoveries . | . . Exploration | -11 -10 ------------- Run | Yrd Mat Turns Passed 796 | 83 713 Spaces Moved 358 | 52 306 Core 20 | 20 . Treads 329 | 23 306 Legs . | . . Wheels 9 | 9 . Hover . | . . Flight . | . . Fastest Speed 50 | 50 160 Average Speed 155 | 122 160 Slowest Speed 250 | 250 240 Overloaded Moves . | . . Propulsion Burnouts . | . . Robots Hopped . | . . Potential Cave-ins . | . . Cave-ins Triggered . | . . Exploration Rate (%) 34 | 4 65 Regions Visited 1 Branch Regions . Pre-discovered Areas . | . . Known Exits Taken . | . . Unknown Exits Taken 1 | 1 . Scrap Searched . | . . Spaces Dug 1 | . 1 Terrain Destroyed 48 | . 48 Melee 1 | . 1 Projectile . | . . AOE 47 | . 47 Terrain Rammed . | . . Walls Destroyed . | . . Machines Disabled . | . . Actions | -11 -10 --------- Run | Yrd Mat Total 495 | 70 425 Wait 31 | 1 30 Move 357 | 51 306 Hop . | . . Pick Up 19 | 10 9 Fast Attach . | . . Attach 12 | 6 6 Detach 1 | . 1 Swap 6 | 2 4 Drop 3 | . 3 Fire 61 | . 61 Melee 2 | . 2 Ram . | . . Kick . | . . Crush 3 | . 3 Escape Stasis . | . . Rewire . | . . Trap . | . . Miscellaneous . | . . Route ------- -11/Scrapyard -10/Materials (discovered 2 exits: [*Mat] / [*Min]) History --------- Turn | Location | Event 8 | -11/Scrapyard | Discovered new exit (range 16) 84 | -11/Scrapyard | Entered Materials 317 | -10/Materials | Build established: Mutant 347 | -10/Materials | Discovered new exit (range 12) 559 | -10/Materials | Discovered new exit (range 3) 750 | -10/Materials | Core integrity fell below 50% 790 | -10/Materials | Core integrity fell below 20% 797 | -10/Materials | Destroyed by G-47 Trooper with Particle Gun Last Messages --------------- 00740_ Critical hit (Burn: +37). 00747_ Ion Engine destroyed. 00748_ Lgt. Armor Plating destroyed. 00755_ U-05 Engineer builds a Wall. 00759_ U-05 Engineer lays Concrete. 00759_ G-47 Trooper suffers critical hit (Destroy). 00759_ Destroyed Aluminum Leg. 00760_ U-05 Engineer lays Concrete. 00762_ Lgt. Treads destroyed. 00764_ Assault Rifle destroyed. 00765_ Lgt. Assault Rifle destroyed. 00784_ G-34 Mercenary destroyed. 00787_ Lgt. Ion Engine destroyed. 00788_ Lgt. Treads destroyed. 00789_ U-05 Engineer lays Concrete. 00790_ U-05 Engineer builds a Wall. 00794_ U-05 Engineer lays Concrete. 00795_ U-05 Engineer builds a Wall. 00796_ Lgt. Assault Rifle destroyed. Map ----- +----------------------------------------------------+ | ?????????????# # T" #?######+######### | | ?????????????# #?? "" #?????# | | ?????????????# #???? #?????# ########+ | | ?????????????# ##??????#?????# #??????# | | ??????? |??# """" #?????????????# #??????# | | ??????? # """" #?????????????# ######?# | | ??????? / """" #?###########?# # #?# | | ?????????? # ### #?# # #?# | | ?????????? ?# o ^ + #?# # #?# | | ?????????????# """" # #?# # #?# | | ????????????# """" # #?# #! #?# | | ????????????# """" # ### #!* #?# | | ????????????# + + %/% #??# | | ????????????# # ### #= #??? | | ????????????# # # #?# # * #??? | | ????????????#### # ########## ##+#####? | | ????????????# T = %* #?# # % #? | | ????????????# #?# # #? | | ????????????# ### + ^ ^ #? | | ????????????# ## """ # """ ""#? | | ????????????# = #?# """ # """ T"#? | | ????????????# ! ! #?# """ # """ ""#? | | ????????????#### ##+ #?# # #? | | ???????????????# # u #?######## #? | | ?????????????????# =# ######??########+## #? | | ?????????????????# # g @ g[#??# # ### | | ?????????????????# # """%#??# """ """ # # | | ?????????????????# ?# = "Y" #??# """ """ # + " | | ?????????????????# ?# g #??# "" """ # # " | | ?????????????????# ??##+######??# """ # # " | | ?????????????????# ??# ????????# """ # # | | ?????????????????#???# "????????# # #! | | ?????????????????????# "????????# """T""" # ### | | ?????????????????????# "????????########### #?? | | ?????????????????????+ ??????????????????# #?? | | ?????????????????????# ???????????????????######?? | | ?????????????????????# ??????????????????????????? | | ?????????????????????#???????????????????????????? | | ?????????????????????????????????????????????????? | | ?????????????????????????????????????????????????? | | ?????????????????????????????????????????????????? | | ?????????????????????????????????????????????????? | | ?????????????????????????????????????????????????? | | | | | | | | | | | | | | | +----------------------------------------------------+ Best States ------------- Heat Dissipation 25 Energy Generation 10 Energy Capacity 250 Matter Stores 300 Matter Capacity 300 Sight Range 16 Terrain Scan Density 10 Armor Coverage 150 Evasion (%) 50 Recoil Reduction 2 Item Schematics ----------------- None Robot Schematics ------------------ None Fabricated ------------ Nothing Repaired ---------- Nothing Studied --------- None Alien Tech Used ----------------- None Achievements -------------- None Challenges ------------ None Game ------ Seed SchematicSalvageAutobeam Manual? 0 Play Time 00:07:16 Cumulative 67.5 hours Start 2025.12.03 @ 22:28:53 End 2025.12.03 @ 22:33:00 Sessions 1 Manual Loads 0 Difficulty Rogue Special Mode None Game No. 170 Rogue 170 Adventurer 0 Explorer 0 Win Type - Total 0 Types 0/0/0/0/0/0/0/0/0/0 Lore% 33 Gallery% 36 Achievement% 29 Wizard Run 0 Options --------- Layout 1 ASCII 0 Keyboard 0 Movement Numpad Keybinds 0 Fullscreen 2 Font 24/Smallcaps Map View 50x35 Zoom Use 0% Tactical HUD 1 Map Filters NONE Filters NONE Steam 1 RUN: 61d9d81f-f096-4e80-88b6-322d71fe4ed4